[Event "*** Titled Tuesday Blitz"]
[Site "Chess.com"]
[Date "2020.11.03"]
[Round "8"]
[White "andrzej"]
[Black "Margarita2907"]
[Result "1-0"]
[WhiteElo "2379"]
[BlackElo "2231"]
[TimeControl "180+1"]
[EndTime "11:31:57 PST"]
[Termination "andrzej won on time"]

1. d4 {[%clk 0:03:00.9]} 1... d5 {[%clk 0:02:58.8]} 2. c4 {[%clk 0:03:01.2]}
2... e6 {[%clk 0:02:58.1]} 3. Nf3 {[%clk 0:03:01.1]} 3... Nf6 {[%clk 0:02:57.8]}
4. g3 {[%clk 0:03:01.4]} 4... Be7 {[%clk 0:02:56.9]} 5. Bg2 {[%clk 0:03:01.9]}
5... O-O {[%clk 0:02:57.4]} 6. O-O {[%clk 0:03:00.8]} 6... c6 {[%clk 0:02:54.5]}
7. Nbd2 {[%clk 0:02:58]} 7... b6 {[%clk 0:02:54.2]} 8. Qc2 {[%clk 0:02:58.4]}
8... Bb7 {[%clk 0:02:52.5]} 9. e4 {[%clk 0:02:58.8]} 9... Na6 {[%clk 0:02:44]}
10. a3 {[%clk 0:02:55.3]} 10... Rc8 {[%clk 0:02:38.9]} 11. e5 {[%clk 0:02:51.9]}
11... Nd7 {[%clk 0:02:37]} 12. cxd5 {[%clk 0:02:48.1]} 12... cxd5 {[%clk
0:02:35.6]} 13. Qa4 {[%clk 0:02:45.3]} 13... Ndb8 {[%clk 0:02:17.7]} 14. h4
{[%clk 0:02:40.6]} 14... Bc6 {[%clk 0:02:13.2]} 15. Qd1 {[%clk 0:02:41.1]} 15...
Bb5 {[%clk 0:02:10.1]} 16. Re1 {[%clk 0:02:41.6]} 16... Nc7 {[%clk 0:01:56.8]}
17. Nf1 {[%clk 0:02:41.1]} 17... Nd7 {[%clk 0:01:29.4]} 18. N1h2 {[%clk
0:02:39.6]} 18... f6 {[%clk 0:01:27.3]} 19. exf6 {[%clk 0:02:35.3]} 19... Bxf6
{[%clk 0:01:22.2]} 20. Ng4 {[%clk 0:02:33.3]} 20... Re8 {[%clk 0:01:15.1]} 21.
Bg5 {[%clk 0:02:29.5]} 21... Bxg5 {[%clk 0:01:12.3]} 22. Nxg5 {[%clk 0:02:23.3]}
22... h6 {[%clk 0:01:12.3]} 23. Nf3 {[%clk 0:02:19.9]} 23... Nf6 {[%clk
0:01:00.2]} 24. Nfe5 {[%clk 0:02:04.4]} 24... Nxg4 {[%clk 0:00:58.5]} 25. Qxg4
{[%clk 0:02:03.9]} 25... Qf6 {[%clk 0:00:56.2]} 26. a4 {[%clk 0:01:59.2]} 26...
Ba6 {[%clk 0:00:53.1]} 27. Rac1 {[%clk 0:01:56.7]} 27... b5 {[%clk 0:00:38.3]}
28. Nd7 {[%clk 0:01:51.2]} 28... Qe7 {[%clk 0:00:32.4]} 29. Nc5 {[%clk
0:01:49.5]} 29... bxa4 {[%clk 0:00:27.9]} 30. Bh3 {[%clk 0:01:49]} 30... Bc4
{[%clk 0:00:20.5]} 31. Nxe6 {[%clk 0:01:45]} 31... Nxe6 {[%clk 0:00:20.2]} 32.
Rxe6 {[%clk 0:01:44.8]} 32... Qf7 {[%clk 0:00:19.7]} 33. Rce1 {[%clk 0:01:31.6]}
33... Rxe6 {[%clk 0:00:18.1]} 34. Rxe6 {[%clk 0:01:24.8]} 34... Rb8 {[%clk
0:00:17]} 35. Rxh6 {[%clk 0:01:11.5]} 35... a3 {[%clk 0:00:06.6]} 36. bxa3
{[%clk 0:00:50.1]} 36... Rb1+ {[%clk 0:00:05.4]} 37. Kh2 {[%clk 0:00:50.6]}
37... Qxf2+ {[%clk 0:00:01.8]} 38. Bg2 {[%clk 0:00:51.2]} 1-0

[Event "*** Titled Tuesday Blitz"]
[Site "Chess.com"]
[Date "2020.11.03"]
[Round "8"]
[White "CraiggoryC"]
[Black "picturesquecheck"]
[Result "0-1"]
[WhiteElo "2271"]
[BlackElo "2133"]
[TimeControl "180+1"]
[EndTime "11:31:57 PST"]
[Termination "picturesquecheck won on time"]

1. e4 {[%clk 0:03:00.9]} 1... c5 {[%clk 0:02:59.3]} 2. Nf3 {[%clk 0:03:00.5]}
2... Nc6 {[%clk 0:02:58.8]} 3. d4 {[%clk 0:03:01]} 3... cxd4 {[%clk 0:02:59.7]}
4. Nxd4 {[%clk 0:03:01.5]} 4... Nf6 {[%clk 0:03:00]} 5. Nc3 {[%clk 0:03:01.8]}
5... d6 {[%clk 0:03:00.4]} 6. Bc4 {[%clk 0:03:00.7]} 6... Qb6 {[%clk 0:02:59]}
7. Nb3 {[%clk 0:02:59.2]} 7... e5 {[%clk 0:02:56.5]} 8. O-O {[%clk 0:02:42.3]}
8... Be7 {[%clk 0:02:54.4]} 9. Bg5 {[%clk 0:02:39.2]} 9... O-O {[%clk
0:02:43.3]} 10. Bxf6 {[%clk 0:02:39.3]} 10... Bxf6 {[%clk 0:02:42.8]} 11. Qxd6
{[%clk 0:02:30.3]} 11... Rd8 {[%clk 0:02:41.6]} 12. Qc5 {[%clk 0:02:24.3]} 12...
Be6 {[%clk 0:02:40.4]} 13. Nd5 {[%clk 0:02:14.8]} 13... Bxd5 {[%clk 0:02:36.6]}
14. Bxd5 {[%clk 0:02:04.2]} 14... Rac8 {[%clk 0:02:34.7]} 15. Qxb6 {[%clk
0:01:59.8]} 15... axb6 {[%clk 0:02:35.6]} 16. c3 {[%clk 0:01:59]} 16... Be7
{[%clk 0:02:33.2]} 17. Rad1 {[%clk 0:01:52.3]} 17... Bc5 {[%clk 0:02:30.4]} 18.
Nxc5 {[%clk 0:01:38.1]} 18... bxc5 {[%clk 0:02:24.9]} 19. Rd2 {[%clk 0:01:38.2]}
19... b6 {[%clk 0:02:20.2]} 20. Rfd1 {[%clk 0:01:32.7]} 20... Kf8 {[%clk
0:02:11.4]} 21. f3 {[%clk 0:01:03.8]} 21... Ne7 {[%clk 0:02:09.1]} 22. Kf2
{[%clk 0:01:00.4]} 22... Rc7 {[%clk 0:02:02.5]} 23. Bc4 {[%clk 0:00:47.9]} 23...
Rxd2+ {[%clk 0:01:56.9]} 24. Rxd2 {[%clk 0:00:48.8]} 24... Nc8 {[%clk
0:01:52.5]} 25. Rd8+ {[%clk 0:00:44.3]} 25... Ke7 {[%clk 0:01:51.9]} 26. Rg8
{[%clk 0:00:43.2]} 26... g6 {[%clk 0:01:50.1]} 27. Rg7 {[%clk 0:00:38.9]} 27...
Nd6 {[%clk 0:01:49.1]} 28. Bd5 {[%clk 0:00:36.4]} 28... h5 {[%clk 0:01:48.4]}
29. a4 {[%clk 0:00:32.1]} 29... Rc8 {[%clk 0:01:47.7]} 30. Rh7 {[%clk
0:00:21.5]} 30... c4 {[%clk 0:01:37.7]} 31. h4 {[%clk 0:00:14.9]} 31... Rc5
{[%clk 0:01:37.4]} 32. g4 {[%clk 0:00:13.4]} 32... hxg4 {[%clk 0:01:33.8]} 33.
fxg4 {[%clk 0:00:13.7]} 33... Ra5 {[%clk 0:01:33.4]} 34. h5 {[%clk 0:00:14]}
34... gxh5 {[%clk 0:01:32.9]} 35. gxh5 {[%clk 0:00:12.5]} 35... Kf6 {[%clk
0:01:31.7]} 36. Rh6+ {[%clk 0:00:12]} 36... Ke7 {[%clk 0:01:31.9]} 37. Rh8
{[%clk 0:00:10.2]} 37... Rxa4 {[%clk 0:01:32]} 38. h6 {[%clk 0:00:09.1]} 38...
Ra1 {[%clk 0:01:13]} 39. h7 {[%clk 0:00:08.9]} 39... Rh1 {[%clk 0:01:12.1]} 40.
Rb8 {[%clk 0:00:06.8]} 40... Ne8 {[%clk 0:01:06.2]} 41. Rxb6 {[%clk 0:00:04.9]}
41... Rxh7 {[%clk 0:01:04.3]} 42. Bxc4 {[%clk 0:00:04.1]} 42... Rh2+ {[%clk
0:01:03.9]} 43. Kg3 {[%clk 0:00:03.5]} 43... Rxb2 {[%clk 0:01:03.7]} 44. Rxb2
{[%clk 0:00:02.6]} 44... Nd6 {[%clk 0:01:04.2]} 45. Bd5 {[%clk 0:00:02.6]} 45...
f5 {[%clk 0:01:04.4]} 46. c4 {[%clk 0:00:02.5]} 46... fxe4 {[%clk 0:01:02.1]}
47. Re2 {[%clk 0:00:01.9]} 47... Kf6 {[%clk 0:01:00.2]} 0-1

[Event "*** Titled Tuesday Blitz"]
[Site "Chess.com"]
[Date "2020.11.03"]
[Round "8"]
[White "ljuks68"]
[Black "Manukyan_Artak"]
[Result "1/2-1/2"]
[WhiteElo "2356"]
[BlackElo "2417"]
[TimeControl "180+1"]
[EndTime "11:32:00 PST"]
[Termination "Game drawn by repetition"]

1. e4 {[%clk 0:03:00.9]} 1... c6 {[%clk 0:02:58.7]} 2. d4 {[%clk 0:03:00.2]}
2... d5 {[%clk 0:02:59.6]} 3. e5 {[%clk 0:03:00.7]} 3... Bf5 {[%clk 0:02:59.1]}
4. Nd2 {[%clk 0:03:00.4]} 4... e6 {[%clk 0:02:59.4]} 5. Nb3 {[%clk 0:03:00.6]}
5... Nd7 {[%clk 0:02:58.8]} 6. Nf3 {[%clk 0:03:00.5]} 6... h6 {[%clk 0:02:57.5]}
7. Be2 {[%clk 0:03:00.3]} 7... g5 {[%clk 0:02:51.4]} 8. O-O {[%clk 0:02:58]}
8... c5 {[%clk 0:02:50.6]} 9. dxc5 {[%clk 0:02:56.2]} 9... Nxc5 {[%clk
0:02:47.6]} 10. Be3 {[%clk 0:02:54.5]} 10... Nxb3 {[%clk 0:02:45]} 11. axb3
{[%clk 0:02:54]} 11... Ne7 {[%clk 0:02:42.1]} 12. b4 {[%clk 0:02:52.8]} 12...
Bg7 {[%clk 0:02:32.8]} 13. Bb5+ {[%clk 0:02:45.8]} 13... Kf8 {[%clk 0:02:30.3]}
14. Bxa7 {[%clk 0:02:22.7]} 14... Bg4 {[%clk 0:02:21.2]} 15. h3 {[%clk
0:01:50.2]} 15... Bxf3 {[%clk 0:02:15.5]} 16. Qxf3 {[%clk 0:01:49.6]} 16... Bxe5
{[%clk 0:02:16.4]} 17. c3 {[%clk 0:01:47.5]} 17... Ng6 {[%clk 0:02:12.3]} 18.
Be3 {[%clk 0:01:43.8]} 18... Kg7 {[%clk 0:02:12.4]} 19. g3 {[%clk 0:01:34.3]}
19... Qf6 {[%clk 0:02:01.3]} 20. Qxf6+ {[%clk 0:01:26]} 20... Bxf6 {[%clk
0:01:59.5]} 21. Be2 {[%clk 0:01:24.4]} 21... Ne5 {[%clk 0:01:57.3]} 22. Ra5
{[%clk 0:01:05.7]} 22... Rxa5 {[%clk 0:01:45.3]} 23. bxa5 {[%clk 0:01:05.2]}
23... h5 {[%clk 0:01:46.2]} 24. Bd4 {[%clk 0:00:57]} 24... h4 {[%clk 0:01:44.5]}
25. g4 {[%clk 0:00:54.5]} 25... Ng6 {[%clk 0:01:43.9]} 26. Ra1 {[%clk
0:00:43.7]} 26... Nf4 {[%clk 0:01:41.3]} 27. Bf1 {[%clk 0:00:43.7]} 27... e5
{[%clk 0:01:41]} 28. Be3 {[%clk 0:00:37.5]} 28... d4 {[%clk 0:01:40.7]} 29. cxd4
{[%clk 0:00:37.7]} 29... exd4 {[%clk 0:01:41.6]} 30. Bxf4 {[%clk 0:00:37.9]}
30... gxf4 {[%clk 0:01:42.5]} 31. Bd3 {[%clk 0:00:33.5]} 31... Ra8 {[%clk
0:01:41.4]} 32. b4 {[%clk 0:00:32.3]} 32... Be7 {[%clk 0:01:37.7]} 33. b5 {[%clk
0:00:31.6]} 33... Bb4 {[%clk 0:01:37.8]} 34. a6 {[%clk 0:00:31.5]} 34... bxa6
{[%clk 0:01:38]} 35. bxa6 {[%clk 0:00:31.6]} 35... Kf6 {[%clk 0:01:34.1]} 36.
Be4 {[%clk 0:00:30.6]} 36... Ra7 {[%clk 0:01:33.5]} 37. Bb7 {[%clk 0:00:30.5]}
37... d3 {[%clk 0:01:32.3]} 38. Kg2 {[%clk 0:00:28.2]} 38... Ke5 {[%clk
0:01:31.3]} 39. Kf3 {[%clk 0:00:26.9]} 39... Kd4 {[%clk 0:01:23.1]} 40. Rd1
{[%clk 0:00:20.3]} 40... Kc3 {[%clk 0:01:22.3]} 41. Ke4 {[%clk 0:00:18]} 41...
d2 {[%clk 0:01:21]} 42. Kf3 {[%clk 0:00:16.2]} 42... Kc2 {[%clk 0:01:18.9]} 43.
Ke2 {[%clk 0:00:16.5]} 43... Ba3 {[%clk 0:01:19.2]} 44. Be4+ {[%clk 0:00:15.9]}
44... Kc3 {[%clk 0:01:18.6]} 45. Bb7 {[%clk 0:00:14.9]} 45... Kc2 {[%clk
0:01:18.2]} 46. Be4+ {[%clk 0:00:14.1]} 46... Kc3 {[%clk 0:01:18.2]} 47. Bb7
{[%clk 0:00:13.3]} 47... Bc1 {[%clk 0:01:10.2]} 48. Rf1 {[%clk 0:00:10.7]} 48...
Kc2 {[%clk 0:01:07.5]} 49. Be4+ {[%clk 0:00:10.8]} 49... Kc3 {[%clk 0:01:07.3]}
50. Bb7 {[%clk 0:00:10.8]} 50... Kc2 {[%clk 0:01:07.5]} 51. Be4+ {[%clk
0:00:10.7]} 51... Kc3 {[%clk 0:01:07.7]} 52. Bb7 {[%clk 0:00:10.8]} 1/2-1/2

[Event "*** Titled Tuesday Blitz"]
[Site "Chess.com"]
[Date "2020.11.03"]
[Round "8"]
[White "Vyacheslav_N"]
[Black "zurzan"]
[Result "1-0"]
[WhiteElo "2303"]
[BlackElo "2069"]
[TimeControl "180+1"]
[EndTime "11:32:04 PST"]
[Termination "Vyacheslav_N won on time"]

1. e4 {[%clk 0:03:00.5]} 1... Nf6 {[%clk 0:02:59.8]} 2. e5 {[%clk 0:03:00.3]}
2... Nd5 {[%clk 0:02:59.9]} 3. d4 {[%clk 0:03:01.1]} 3... d6 {[%clk 0:03:00]} 4.
c4 {[%clk 0:03:02]} 4... Nb6 {[%clk 0:02:59.8]} 5. exd6 {[%clk 0:03:02.7]} 5...
cxd6 {[%clk 0:03:00.7]} 6. Nc3 {[%clk 0:02:52.2]} 6... g6 {[%clk 0:03:01.2]} 7.
h4 {[%clk 0:02:48.2]} 7... Bg7 {[%clk 0:03:01.7]} 8. h5 {[%clk 0:02:46.2]} 8...
Nc6 {[%clk 0:02:51.4]} 9. d5 {[%clk 0:02:43]} 9... Ne5 {[%clk 0:02:47.4]} 10. h6
{[%clk 0:02:36.8]} 10... Bf6 {[%clk 0:02:44.4]} 11. f4 {[%clk 0:02:36.3]} 11...
Ned7 {[%clk 0:02:26.6]} 12. Ne4 {[%clk 0:02:33.1]} 12... Qc7 {[%clk 0:02:16.6]}
13. Nxf6+ {[%clk 0:02:13.7]} 13... Nxf6 {[%clk 0:02:16.4]} 14. b3 {[%clk
0:02:08.8]} 14... Bg4 {[%clk 0:02:08]} 15. Nf3 {[%clk 0:02:00.2]} 15... O-O-O
{[%clk 0:01:52.9]} 16. Be2 {[%clk 0:01:57.4]} 16... Ne4 {[%clk 0:01:45.1]} 17.
Nd4 {[%clk 0:01:47.8]} 17... Bxe2 {[%clk 0:01:29]} 18. Nxe2 {[%clk 0:01:48.7]}
18... e6 {[%clk 0:01:13.8]} 19. Bb2 {[%clk 0:01:41.6]} 19... Rhe8 {[%clk
0:00:56.4]} 20. dxe6 {[%clk 0:01:41.7]} 20... Rxe6 {[%clk 0:00:52.5]} 21. O-O
{[%clk 0:01:42]} 21... Kb8 {[%clk 0:00:39.9]} 22. Nd4 {[%clk 0:01:40.8]} 22...
Ree8 {[%clk 0:00:34]} 23. Nb5 {[%clk 0:01:38.6]} 23... Qc5+ {[%clk 0:00:26.4]}
24. Bd4 {[%clk 0:01:34.9]} 24... Qf5 {[%clk 0:00:22.5]} 25. g4 {[%clk
0:01:14.4]} 25... Qd7 {[%clk 0:00:17.4]} 26. Nc3 {[%clk 0:00:58]} 26... Nxc3
{[%clk 0:00:16.5]} 27. Bxc3 {[%clk 0:00:58.9]} 27... d5 {[%clk 0:00:16.2]} 28.
Be5+ {[%clk 0:00:54.3]} 28... Ka8 {[%clk 0:00:15.8]} 29. c5 {[%clk 0:00:54.9]}
29... Nc8 {[%clk 0:00:15.8]} 30. b4 {[%clk 0:00:49.2]} 30... d4 {[%clk
0:00:15.8]} 31. Qf3 {[%clk 0:00:48.8]} 31... Qe6 {[%clk 0:00:10.1]} 32. Rad1
{[%clk 0:00:46.1]} 32... f6 {[%clk 0:00:09.4]} 33. Bxd4 {[%clk 0:00:45.7]} 33...
Ne7 {[%clk 0:00:04.6]} 34. Rfe1 {[%clk 0:00:42.3]} 34... Qf7 {[%clk 0:00:04.8]}
35. Bf2 {[%clk 0:00:40.1]} 35... Nc6 {[%clk 0:00:04.7]} 36. b5 {[%clk
0:00:39.3]} 36... Nb4 {[%clk 0:00:02.6]} 37. c6 {[%clk 0:00:37.5]} 37... bxc6
{[%clk 0:00:01.9]} 38. bxc6 {[%clk 0:00:38.4]} 1-0

[Event "*** Titled Tuesday Blitz"]
[Site "Chess.com"]
[Date "2020.11.03"]
[Round "8"]
[White "SGchess01"]
[Black "Legendinunknown"]
[Result "1-0"]
[WhiteElo "2850"]
[BlackElo "2682"]
[TimeControl "180+1"]
[EndTime "11:32:05 PST"]
[Termination "SGchess01 won by resignation"]

1. d4 {[%clk 0:03:00.9]} 1... Nf6 {[%clk 0:02:57.1]} 2. c4 {[%clk 0:02:59.3]}
2... g6 {[%clk 0:02:57.4]} 3. Nc3 {[%clk 0:02:59.3]} 3... Bg7 {[%clk 0:02:56.9]}
4. e4 {[%clk 0:02:59.7]} 4... d6 {[%clk 0:02:55.8]} 5. f3 {[%clk 0:03:00.1]}
5... O-O {[%clk 0:02:54.4]} 6. Be3 {[%clk 0:03:00]} 6... c5 {[%clk 0:02:54.1]}
7. Nge2 {[%clk 0:02:59.3]} 7... Nc6 {[%clk 0:02:53.6]} 8. d5 {[%clk 0:02:59.6]}
8... Ne5 {[%clk 0:02:51]} 9. Ng3 {[%clk 0:02:59.3]} 9... a6 {[%clk 0:02:48.6]}
10. f4 {[%clk 0:02:53.6]} 10... Neg4 {[%clk 0:02:47.5]} 11. Bd2 {[%clk
0:02:53.7]} 11... h5 {[%clk 0:02:34.1]} 12. h3 {[%clk 0:02:43.1]} 12... Nh6
{[%clk 0:02:07.2]} 13. Bd3 {[%clk 0:02:36.9]} 13... b5 {[%clk 0:02:05.4]} 14.
O-O {[%clk 0:02:19]} 14... h4 {[%clk 0:02:03.5]} 15. Nh1 {[%clk 0:02:07.4]}
15... bxc4 {[%clk 0:02:01.7]} 16. Bxc4 {[%clk 0:02:06.4]} 16... Nh5 {[%clk
0:01:54.1]} 17. Qe2 {[%clk 0:01:58.2]} 17... e6 {[%clk 0:01:45.7]} 18. dxe6
{[%clk 0:01:45.2]} 18... fxe6 {[%clk 0:01:40.7]} 19. f5 {[%clk 0:01:42.2]} 19...
Kh7 {[%clk 0:01:34.8]} 20. fxg6+ {[%clk 0:01:39.6]} 20... Kxg6 {[%clk
0:01:33.8]} 21. e5 {[%clk 0:01:37.6]} 21... Bxe5 {[%clk 0:01:03.3]} 22. Bd3+
{[%clk 0:01:33.4]} 22... Rf5 {[%clk 0:01:00.5]} 23. Bxf5+ {[%clk 0:00:44.5]}
23... exf5 {[%clk 0:00:58.3]} 24. Nd5 {[%clk 0:00:36.7]} 24... Bb7 {[%clk
0:00:49.8]} 25. Nf4+ {[%clk 0:00:36.8]} 25... Nxf4 {[%clk 0:00:46.7]} 26. Bxf4
{[%clk 0:00:36.9]} 26... Qf6 {[%clk 0:00:16.6]} 27. Bxe5 {[%clk 0:00:32.5]}
27... dxe5 {[%clk 0:00:17.5]} 28. Nf2 {[%clk 0:00:31.3]} 28... Qg5 {[%clk
0:00:16.6]} 29. Nd3 {[%clk 0:00:30.4]} 29... Nf7 {[%clk 0:00:16.9]} 30. Nxc5
{[%clk 0:00:27.9]} 30... Bc6 {[%clk 0:00:16.1]} 31. Rac1 {[%clk 0:00:26.4]}
31... Rc8 {[%clk 0:00:15.5]} 32. Ne6 {[%clk 0:00:24]} 32... Qf6 {[%clk
0:00:14.1]} 33. Nc5 {[%clk 0:00:22.6]} 33... Bb5 {[%clk 0:00:14.3]} 34. Qf2
{[%clk 0:00:20.7]} 34... Bxf1 {[%clk 0:00:14.1]} 35. Rxf1 {[%clk 0:00:21.6]}
35... Qb6 {[%clk 0:00:13.8]} 36. Qxf5+ {[%clk 0:00:20.8]} 36... Kh6 {[%clk
0:00:13.1]} 37. Qxc8 {[%clk 0:00:20.8]} 1-0

[Event "*** Titled Tuesday Blitz"]
[Site "Chess.com"]
[Date "2020.11.03"]
[Round "8"]
[White "Grandelicious"]
[Black "AquivaRubinstein"]
[Result "1-0"]
[WhiteElo "2790"]
[BlackElo "2545"]
[TimeControl "180+1"]
[EndTime "11:32:05 PST"]
[Termination "Grandelicious won on time"]

1. Nf3 {[%clk 0:03:00.9]} 1... Nf6 {[%clk 0:02:58.5]} 2. g3 {[%clk 0:03:00.8]}
2... g6 {[%clk 0:02:55.9]} 3. b3 {[%clk 0:03:00.8]} 3... Bg7 {[%clk 0:02:55.2]}
4. Bb2 {[%clk 0:03:01.4]} 4... O-O {[%clk 0:02:55.2]} 5. Bg2 {[%clk 0:03:01.7]}
5... c5 {[%clk 0:02:55]} 6. O-O {[%clk 0:03:01]} 6... Nc6 {[%clk 0:02:54.2]} 7.
e3 {[%clk 0:02:59.7]} 7... d6 {[%clk 0:02:50.8]} 8. d4 {[%clk 0:02:57.6]} 8...
cxd4 {[%clk 0:02:46.5]} 9. exd4 {[%clk 0:02:58.5]} 9... d5 {[%clk 0:02:34.9]}
10. Nbd2 {[%clk 0:02:51.5]} 10... Bf5 {[%clk 0:02:14.4]} 11. Ne5 {[%clk
0:02:46.9]} 11... Rc8 {[%clk 0:02:10]} 12. c4 {[%clk 0:02:41.5]} 12... dxc4
{[%clk 0:01:45]} 13. Nxc6 {[%clk 0:02:40.1]} 13... bxc6 {[%clk 0:01:45]} 14.
bxc4 {[%clk 0:02:35.3]} 14... Qb6 {[%clk 0:01:33.5]} 15. Nb3 {[%clk 0:02:30.7]}
15... Rfd8 {[%clk 0:01:21.6]} 16. Qe2 {[%clk 0:02:29.8]} 16... Qa6 {[%clk
0:01:08.7]} 17. Nc5 {[%clk 0:02:21.7]} 17... Qb6 {[%clk 0:01:08.3]} 18. h3
{[%clk 0:02:14.8]} 18... h5 {[%clk 0:01:02.6]} 19. Bc3 {[%clk 0:02:09.5]} 19...
Rb8 {[%clk 0:00:56.4]} 20. Qxe7 {[%clk 0:01:59]} 20... Nd7 {[%clk 0:00:38.8]}
21. Nb3 {[%clk 0:01:53.1]} 21... Qa6 {[%clk 0:00:35]} 22. Rfc1 {[%clk
0:01:31.6]} 22... Re8 {[%clk 0:00:27]} 23. Qd6 {[%clk 0:01:31.4]} 23... Qxc4
{[%clk 0:00:21.9]} 24. Na5 {[%clk 0:01:27.5]} 24... Qd3 {[%clk 0:00:16.1]} 25.
Nxc6 {[%clk 0:01:22.6]} 25... Rb6 {[%clk 0:00:16.1]} 26. Ba5 {[%clk 0:01:15.8]}
26... Ra6 {[%clk 0:00:15.4]} 27. Bf1 {[%clk 0:01:04.1]} 27... Qe4 {[%clk
0:00:10.6]} 28. Re1 {[%clk 0:00:49.5]} 28... Rxc6 {[%clk 0:00:04]} 29. Rxe4
{[%clk 0:00:49.3]} 29... Rxd6 {[%clk 0:00:04.2]} 30. Rxe8+ {[%clk 0:00:49.4]}
30... Kh7 {[%clk 0:00:04.8]} 31. Rd1 {[%clk 0:00:45]} 31... Rxd4 {[%clk
0:00:03.8]} 32. Rxd4 {[%clk 0:00:40.4]} 32... Bxd4 {[%clk 0:00:03.7]} 33. Bd2
{[%clk 0:00:35.7]} 33... Kg7 {[%clk 0:00:03.4]} 34. Be3 {[%clk 0:00:35.5]} 34...
Bf6 {[%clk 0:00:02.3]} 35. Bxa7 {[%clk 0:00:34.6]} 35... Ne5 {[%clk 0:00:02.4]}
36. Bg2 {[%clk 0:00:29.2]} 1-0

[Event "*** Titled Tuesday Blitz"]
[Site "Chess.com"]
[Date "2020.11.03"]
[Round "8"]
[White "glebus008"]
[Black "Tashik"]
[Result "0-1"]
[WhiteElo "2314"]
[BlackElo "2494"]
[TimeControl "180+1"]
[EndTime "11:32:05 PST"]
[Termination "Tashik won by resignation"]

1. e4 {[%clk 0:03:00.9]} 1... e5 {[%clk 0:02:58.8]} 2. Nf3 {[%clk 0:02:59.8]}
2... Nc6 {[%clk 0:02:59.3]} 3. d4 {[%clk 0:02:59.8]} 3... exd4 {[%clk
0:02:58.9]} 4. Bc4 {[%clk 0:02:58.7]} 4... Nf6 {[%clk 0:02:59.3]} 5. O-O {[%clk
0:02:58.5]} 5... Nxe4 {[%clk 0:02:59.1]} 6. Nc3 {[%clk 0:02:58]} 6... d5 {[%clk
0:02:46.9]} 7. Nxd5 {[%clk 0:02:55.3]} 7... Be6 {[%clk 0:02:43.3]} 8. Re1 {[%clk
0:02:33]} 8... Bxd5 {[%clk 0:02:42.1]} 9. Bxd5 {[%clk 0:02:32.8]} 9... Qxd5
{[%clk 0:02:43]} 10. Ng5 {[%clk 0:02:26]} 10... O-O-O {[%clk 0:02:06.8]} 11.
Nxe4 {[%clk 0:02:21.1]} 11... Bb4 {[%clk 0:01:59.5]} 12. Bd2 {[%clk 0:02:15]}
12... Rhe8 {[%clk 0:01:55.1]} 13. Bxb4 {[%clk 0:02:12.9]} 13... Rxe4 {[%clk
0:01:48.1]} 14. Rxe4 {[%clk 0:02:09.4]} 14... Qxe4 {[%clk 0:01:49]} 15. a3
{[%clk 0:02:05]} 15... d3 {[%clk 0:01:38]} 16. cxd3 {[%clk 0:02:00.9]} 16...
Rxd3 {[%clk 0:01:37.6]} 17. Qh5 {[%clk 0:01:59.7]} 17... Qg6 {[%clk 0:01:01.9]}
18. Qc5 {[%clk 0:01:54.5]} 18... b6 {[%clk 0:00:59.4]} 19. Qf8+ {[%clk
0:01:53.6]} 19... Kb7 {[%clk 0:00:59.8]} 20. Qe8 {[%clk 0:01:34.8]} 20... Qe6
{[%clk 0:00:43.2]} 21. Qxe6 {[%clk 0:01:33.4]} 21... fxe6 {[%clk 0:00:44.1]} 22.
Bc3 {[%clk 0:01:33.9]} 22... e5 {[%clk 0:00:38.6]} 23. Re1 {[%clk 0:01:31]}
23... Rd5 {[%clk 0:00:35.6]} 24. Kf1 {[%clk 0:01:28.2]} 24... g6 {[%clk
0:00:35.6]} 25. Ke2 {[%clk 0:01:25.5]} 25... a5 {[%clk 0:00:35.3]} 26. f3 {[%clk
0:01:21.8]} 26... b5 {[%clk 0:00:35.6]} 27. Rd1 {[%clk 0:01:10.8]} 27... Rxd1
{[%clk 0:00:31.9]} 28. Kxd1 {[%clk 0:01:11.7]} 28... b4 {[%clk 0:00:30.3]} 29.
Be1 {[%clk 0:01:05.4]} 29... Kb6 {[%clk 0:00:30.2]} 30. Ke2 {[%clk 0:01:02.1]}
30... Kb5 {[%clk 0:00:30.1]} 31. axb4 {[%clk 0:01:01.2]} 31... axb4 {[%clk
0:00:28.9]} 32. Kd3 {[%clk 0:01:01.6]} 32... Na5 {[%clk 0:00:22.4]} 33. g4
{[%clk 0:00:58.5]} 33... Nc4 {[%clk 0:00:19.7]} 34. b3 {[%clk 0:00:53.9]} 34...
Na5 {[%clk 0:00:19.3]} 35. Kc2 {[%clk 0:00:50.8]} 35... c5 {[%clk 0:00:19.9]}
36. h4 {[%clk 0:00:49.7]} 36... c4 {[%clk 0:00:20.2]} 37. bxc4+ {[%clk
0:00:49.1]} 37... Kxc4 {[%clk 0:00:20.8]} 38. h5 {[%clk 0:00:49.6]} 38... Nc6
{[%clk 0:00:20.7]} 39. hxg6 {[%clk 0:00:48.1]} 39... hxg6 {[%clk 0:00:21.6]} 40.
Bg3 {[%clk 0:00:47.2]} 40... Nd4+ {[%clk 0:00:21.2]} 41. Kb2 {[%clk 0:00:46.2]}
41... Nxf3 {[%clk 0:00:22.1]} 42. Kc2 {[%clk 0:00:45.6]} 42... e4 {[%clk
0:00:22.4]} 43. Kb2 {[%clk 0:00:44.8]} 43... e3 {[%clk 0:00:21.9]} 44. Kc2
{[%clk 0:00:44.9]} 44... e2 {[%clk 0:00:22.1]} 45. Bf2 {[%clk 0:00:44.3]} 45...
e1=Q {[%clk 0:00:22]} 46. Bxe1 {[%clk 0:00:44.5]} 46... Nxe1+ {[%clk 0:00:22.8]}
47. Kb2 {[%clk 0:00:45]} 47... Nd3+ {[%clk 0:00:21.9]} 0-1